[Event "Titled Tuesday Blitz March 14 Early 2023"]
[White "Cheng, Xiao"]
[Black "Garcia Pantoja, Roberto"]
[WhiteFideId "2022915"]
[BlackFideId "3509265"]
[WhiteElo "2457"]
[BlackElo "2544"]
[Result "1-0"]
[Round "05"]
[TimeControl "180+2"]
[Date "2023.03.14"]
[WhiteClock "0:00:13"]
[BlackClock "0:00:11"]

1. e4 {[%clk 0:02:22]}  c5 {[%clk 0:02:56]} 2. Nf3 {[%clk 0:02:21]}  d6 {[%clk 0:02:57]} 3. d4 {[%clk 0:02:22]}  cxd4 {[%clk 0:02:57]} 4. Nxd4 {[%clk 0:02:22]}  Nf6 {[%clk 0:02:58]} 5. Nc3 {[%clk 0:02:23]}  a6 {[%clk 0:02:57]} 6. Bc4 {[%clk 0:02:21]}  e6 {[%clk 0:02:55]} 7. Bb3 {[%clk 0:02:21]}  Nbd7 {[%clk 0:02:55]} 8. Be3 {[%clk 0:02:17]}  Nc5 {[%clk 0:02:55]} 9. f3 {[%clk 0:02:17]}  b5 {[%clk 0:02:53]} 10. Qd2 {[%clk 0:02:16]}  Bd7 {[%clk 0:02:52]} 11. g4 {[%clk 0:02:14]}  h6 {[%clk 0:02:52]} 12. Nce2 {[%clk 0:02:13]}  a5 {[%clk 0:02:47]} 13. c3 {[%clk 0:02:10]}  a4 {[%clk 0:02:33]} 14. Bc2 {[%clk 0:02:09]}  Be7 {[%clk 0:02:31]} 15. Ng3 {[%clk 0:02:02]}  a3 {[%clk 0:02:27]} 16. b3 {[%clk 0:02:02]}  Qc7 {[%clk 0:02:23]} 17. h4 {[%clk 0:02:00]}  d5 {[%clk 0:02:20]} 18. Rg1 {[%clk 0:01:55]}  dxe4 {[%clk 0:02:15]} 19. g5 {[%clk 0:01:48]}  hxg5 {[%clk 0:02:14]} 20. hxg5 {[%clk 0:01:48]}  Nd5 {[%clk 0:02:13]} 21. Nxe4 {[%clk 0:01:31]}  Nxe3 {[%clk 0:01:41]} 22. Qxe3 {[%clk 0:01:30]}  Rh2 {[%clk 0:01:36]} 23. Nf2 {[%clk 0:01:21]}  Bd6 {[%clk 0:01:23]} 24. g6 {[%clk 0:01:15]}  Bf4 {[%clk 0:01:17]} 25. gxf7+ {[%clk 0:01:14]}  Kxf7 {[%clk 0:01:18]} 26. Qe2 {[%clk 0:01:05]}  Bg3 {[%clk 0:00:59]} 27. Rf1 {[%clk 0:00:52]}  Nxb3 {[%clk 0:00:56]} 28. Nxb3 {[%clk 0:00:35]}  Qxc3+ {[%clk 0:00:54]} 29. Qd2 {[%clk 0:00:29]}  Qe5+ {[%clk 0:00:40]} 30. Be4 {[%clk 0:00:23]}  Rd8 {[%clk 0:00:35]} 31. Qd4 {[%clk 0:00:22]}  Qf4 {[%clk 0:00:28]} 32. Rd1 {[%clk 0:00:20]}  Be8 {[%clk 0:00:19]} 33. Qa7+ {[%clk 0:00:16]}  Kf8 {[%clk 0:00:17]} 34. Rxd8 {[%clk 0:00:16]}  Qe5 {[%clk 0:00:13]} 35. Rxe8+ {[%clk 0:00:13]}  Kxe8 {[%clk 0:00:14]} 36. Qa8+ {[%clk 0:00:12]}  Kf7 {[%clk 0:00:14]} 37. Qb7+ {[%clk 0:00:12]}  Kf6 {[%clk 0:00:14]} 38. Qc6 {[%clk 0:00:09]}  Qb2 {[%clk 0:00:08]} 39. Qc2 {[%clk 0:00:09]}  Qe5 {[%clk 0:00:07]} 40. Ke2 {[%clk 0:00:07]}  Bxf2 {[%clk 0:00:06]} 41. Rxf2 {[%clk 0:00:07]}  Rh1 {[%clk 0:00:06]} 42. Nd2 {[%clk 0:00:05]}  Qa1 {[%clk 0:00:05]} 43. Rf1 {[%clk 0:00:03]}  Rh2+ {[%clk 0:00:05]} 44. Rf2 {[%clk 0:00:03]}  Rh1 {[%clk 0:00:05]} 45. Nf1 {[%clk 0:00:04]}  Qe5 {[%clk 0:00:04]} 46. Ke3 {[%clk 0:00:03]}  g5 {[%clk 0:00:04]} 47. Qd2 {[%clk 0:00:03]}  Qf4+ {[%clk 0:00:04]} 48. Ke2 {[%clk 0:00:04]}  Qe5 {[%clk 0:00:05]} 49. Qd3 {[%clk 0:00:03]}  Ke7 {[%clk 0:00:05]} 50. Qxa3+ {[%clk 0:00:03]}  Kf7 {[%clk 0:00:04]} 51. Qb3 {[%clk 0:00:03]}  Kf6 {[%clk 0:00:04]} 52. Qc2 {[%clk 0:00:04]}  b4 {[%clk 0:00:04]} 53. f4 {[%clk 0:00:05]}  gxf4 {[%clk 0:00:05]} 54. Kf3 {[%clk 0:00:03]}  Rh3+ {[%clk 0:00:05]} 55. Ke2 {[%clk 0:00:04]}  Rh4 {[%clk 0:00:05]} 56. Ng3 {[%clk 0:00:04]}  Ke7 {[%clk 0:00:05]} 57. Nf1 {[%clk 0:00:03]}  f3+ {[%clk 0:00:05]} 58. Rxf3 {[%clk 0:00:03]}  Rxe4+ {[%clk 0:00:05]} 59. Re3 {[%clk 0:00:04]}  Rxe3+ {[%clk 0:00:06]} 60. Nxe3 {[%clk 0:00:04]}  Qh2+ {[%clk 0:00:06]} 61. Kd3 {[%clk 0:00:05]}  Qe5 {[%clk 0:00:06]} 62. Qc4 {[%clk 0:00:04]}  Qb2 {[%clk 0:00:06]} 63. Qb3 {[%clk 0:00:03]}  Qa1 {[%clk 0:00:05]} 64. Qxb4+ {[%clk 0:00:03]}  Kf7 {[%clk 0:00:04]} 65. a4 {[%clk 0:00:04]}  Qe5 {[%clk 0:00:03]} 66. Nc4 {[%clk 0:00:04]}  Qd5+ {[%clk 0:00:03]} 67. Kc3 {[%clk 0:00:04]}  Qf3+ {[%clk 0:00:04]} 68. Kb2 {[%clk 0:00:04]}  Qe2+ {[%clk 0:00:04]} 69. Nd2 {[%clk 0:00:04]}  Qa6 {[%clk 0:00:04]} 70. a5 {[%clk 0:00:05]}  Qd3 {[%clk 0:00:04]} 71. Qb6 {[%clk 0:00:06]}  Qxd2+ {[%clk 0:00:03]} 72. Kb3 {[%clk 0:00:06]}  Qd3+ {[%clk 0:00:04]} 73. Kb4 {[%clk 0:00:07]}  e5 {[%clk 0:00:04]} 74. a6 {[%clk 0:00:07]}  Qd2+ {[%clk 0:00:05]} 75. Kb5 {[%clk 0:00:07]}  Qd3+ {[%clk 0:00:05]} 76. Kc6 {[%clk 0:00:07]}  e4 {[%clk 0:00:05]} 77. a7 {[%clk 0:00:07]}  e3 {[%clk 0:00:05]} 78. Qb7+ {[%clk 0:00:07]}  Kf6 {[%clk 0:00:04]} 79. a8=Q {[%clk 0:00:08]}  e2 {[%clk 0:00:05]} 80. Qf8+ {[%clk 0:00:07]}  Ke5 {[%clk 0:00:05]} 81. Qbe7+ {[%clk 0:00:08]}  Kd4 {[%clk 0:00:06]} 82. Qfd8+ {[%clk 0:00:08]}  Kc3 {[%clk 0:00:07]} 83. Qxd3+ {[%clk 0:00:09]}  Kxd3 {[%clk 0:00:08]} 84. Qd6+ {[%clk 0:00:09]}  Kc2 {[%clk 0:00:08]} 85. Qg3 {[%clk 0:00:09]}  Kd2 {[%clk 0:00:07]} 86. Qf4+ {[%clk 0:00:09]}  Kc2 {[%clk 0:00:07]} 87. Qc4+ {[%clk 0:00:10]}  Kd2 {[%clk 0:00:07]} 88. Qd4+ {[%clk 0:00:10]}  Kc2 {[%clk 0:00:08]} 89. Qe3 {[%clk 0:00:10]}  Kd1 {[%clk 0:00:08]} 90. Qd3+ {[%clk 0:00:10]}  Ke1 {[%clk 0:00:08]} 91. Kd5 {[%clk 0:00:11]}  Kf1 {[%clk 0:00:09]} 92. Qf3+ {[%clk 0:00:11]}  Ke1 {[%clk 0:00:10]} 93. Ke4 {[%clk 0:00:11]}  Kd2 {[%clk 0:00:10]} 94. Qd3+ {[%clk 0:00:11]}  Ke1 {[%clk 0:00:10]} 95. Kf3 {[%clk 0:00:11]}  Kf1 {[%clk 0:00:10]} 96. Qxe2+ {[%clk 0:00:12]}  Kg1 {[%clk 0:00:11]} 97. Qg2# {[%clk 0:00:13]} 1-0


[Site "https://www.chess.com"]

[Event "Titled Tuesday Blitz March 14 Early 2023"]
[White "Fiorito, Joaquin"]
[Black "Sarkar, Justin"]
[WhiteFideId "180173"]
[BlackFideId "2010011"]
[WhiteElo "2157"]
[BlackElo "2189"]
[Result "1-0"]
[Round "05"]
[TimeControl "180+2"]
[Date "2023.03.14"]
[WhiteClock "0:02:17"]
[BlackClock "0:00:01"]

1. d4 {[%clk 0:03:00]}  Nf6 {[%clk 0:02:31]} 2. Nc3 {[%clk 0:03:00]}  d5 {[%clk 0:02:28]} 3. Bf4 {[%clk 0:03:01]}  g6 {[%clk 0:02:19]} 4. e3 {[%clk 0:02:59]}  Bg7 {[%clk 0:02:18]} 5. h4 {[%clk 0:03:00]}  c5 {[%clk 0:02:10]} 6. h5 {[%clk 0:02:48]}  cxd4 {[%clk 0:02:04]} 7. exd4 {[%clk 0:02:47]}  Nxh5 {[%clk 0:01:58]} 8. Rxh5 {[%clk 0:02:47]}  gxh5 {[%clk 0:01:56]} 9. Qxh5 {[%clk 0:02:46]}  e6 {[%clk 0:01:22]} 10. Nb5 {[%clk 0:02:41]}  O-O {[%clk 0:00:48]} 11. Bd3 {[%clk 0:02:38]}  f5 {[%clk 0:00:39]} 12. Nf3 {[%clk 0:02:35]}  Nc6 {[%clk 0:00:25]} 13. O-O-O {[%clk 0:02:33]}  Qe8 {[%clk 0:00:09]} 14. Qxe8 {[%clk 0:02:31]}  Rxe8 {[%clk 0:00:09]} 15. Nc7 {[%clk 0:02:31]}  Bd7 {[%clk 0:00:09]} 16. Nxa8 {[%clk 0:02:31]}  Rxa8 {[%clk 0:00:08]} 17. c3 {[%clk 0:02:31]}  Ne7 {[%clk 0:00:05]} 18. Be5 {[%clk 0:02:23]}  Bh6+ {[%clk 0:00:02]} 19. Kb1 {[%clk 0:02:23]}  Ng6 {[%clk 0:00:02]} 20. Re1 {[%clk 0:02:23]}  Bg7 {[%clk 0:00:01]} 21. Bxg7 {[%clk 0:02:19]}  Kxg7 {[%clk 0:00:01]} 22. g3 {[%clk 0:02:18]}  Kf6 {[%clk 0:00:01]} 23. Rh1 {[%clk 0:02:17]} 1-0


[Site "https://www.chess.com"]

[Event "Titled Tuesday Blitz March 14 Early 2023"]
[White "aidenzhouu"]
[Black "Ginzburg, Yakov"]
[BlackFideId "4157176"]
[WhiteElo "2418"]
[BlackElo "2305"]
[Result "0-1"]
[Round "05"]
[TimeControl "180+2"]
[Date "2023.03.14"]
[WhiteClock "0:00:32"]
[BlackClock "0:01:50"]

1. d4 {[%clk 0:03:00]}  d5 {[%clk 0:02:56]} 2. c4 {[%clk 0:03:00]}  c6 {[%clk 0:02:56]} 3. Nf3 {[%clk 0:03:00]}  Nf6 {[%clk 0:02:56]} 4. e3 {[%clk 0:03:00]}  a6 {[%clk 0:02:54]} 5. b3 {[%clk 0:02:44]}  Bg4 {[%clk 0:02:48]} 6. Nbd2 {[%clk 0:02:39]}  c5 {[%clk 0:02:45]} 7. dxc5 {[%clk 0:02:06]}  e5 {[%clk 0:02:44]} 8. Be2 {[%clk 0:02:02]}  e4 {[%clk 0:02:42]} 9. Nd4 {[%clk 0:01:54]}  Bxe2 {[%clk 0:02:41]} 10. Qxe2 {[%clk 0:01:55]}  Bxc5 {[%clk 0:02:41]} 11. Bb2 {[%clk 0:01:49]}  O-O {[%clk 0:02:35]} 12. O-O {[%clk 0:01:31]}  Nc6 {[%clk 0:02:30]} 13. Nf5 {[%clk 0:01:14]}  d4 {[%clk 0:02:18]} 14. exd4 {[%clk 0:01:02]}  Nxd4 {[%clk 0:02:18]} 15. Nxd4 {[%clk 0:01:01]}  Bxd4 {[%clk 0:02:18]} 16. Bxd4 {[%clk 0:00:59]}  Qxd4 {[%clk 0:02:18]} 17. Rfd1 {[%clk 0:00:54]}  Rad8 {[%clk 0:02:00]} 18. Nf1 {[%clk 0:00:49]}  Qe5 {[%clk 0:01:57]} 19. Ne3 {[%clk 0:00:45]}  h5 {[%clk 0:01:54]} 20. h3 {[%clk 0:00:36]}  g6 {[%clk 0:01:54]} 21. Rd2 {[%clk 0:00:32]}  Qxa1+ {[%clk 0:01:50]} 0-1


[Site "https://www.chess.com"]

[Event "Titled Tuesday Blitz March 14 Early 2023"]
[White "Manukian, Artak"]
[Black "Samarth, J Rao"]
[WhiteFideId "13301373"]
[BlackFideId "46652370"]
[WhiteElo "2130"]
[BlackElo "1564"]
[Result "1-0"]
[Round "05"]
[TimeControl "180+2"]
[Date "2023.03.14"]
[WhiteClock "0:01:09"]
[BlackClock "0:01:45"]

1. e4 {[%clk 0:03:00]}  c5 {[%clk 0:02:57]} 2. Nf3 {[%clk 0:03:01]}  d6 {[%clk 0:02:57]} 3. Bb5+ {[%clk 0:02:58]}  Nd7 {[%clk 0:02:57]} 4. O-O {[%clk 0:02:57]}  Nf6 {[%clk 0:02:55]} 5. Re1 {[%clk 0:02:55]}  a6 {[%clk 0:02:55]} 6. Bf1 {[%clk 0:02:54]}  g6 {[%clk 0:02:55]} 7. c3 {[%clk 0:02:54]}  Bg7 {[%clk 0:02:56]} 8. d4 {[%clk 0:02:54]}  cxd4 {[%clk 0:02:57]} 9. cxd4 {[%clk 0:02:55]}  e5 {[%clk 0:02:57]} 10. dxe5 {[%clk 0:02:53]}  Nxe5 {[%clk 0:02:55]} 11. Nxe5 {[%clk 0:02:53]}  dxe5 {[%clk 0:02:55]} 12. Qxd8+ {[%clk 0:02:53]}  Kxd8 {[%clk 0:02:56]} 13. Nc3 {[%clk 0:02:51]}  Be6 {[%clk 0:02:57]} 14. Bg5 {[%clk 0:02:49]}  Kc7 {[%clk 0:02:56]} 15. Rac1 {[%clk 0:02:48]}  Nd7 {[%clk 0:02:50]} 16. Nd5+ {[%clk 0:02:43]}  Kb8 {[%clk 0:02:50]} 17. Nc7 {[%clk 0:02:26]}  Bxa2 {[%clk 0:02:49]} 18. Nxa8 {[%clk 0:02:25]}  Kxa8 {[%clk 0:02:50]} 19. Rc7 {[%clk 0:02:20]}  Be6 {[%clk 0:02:47]} 20. Rd1 {[%clk 0:02:08]}  Nb6 {[%clk 0:02:45]} 21. Rd8+ {[%clk 0:02:07]}  Rxd8 {[%clk 0:02:45]} 22. Bxd8 {[%clk 0:02:08]}  Na4 {[%clk 0:02:41]} 23. Rc2 {[%clk 0:01:57]}  Bb3 {[%clk 0:02:36]} 24. Re2 {[%clk 0:01:48]}  b5 {[%clk 0:02:30]} 25. g3 {[%clk 0:01:31]}  Kb7 {[%clk 0:02:23]} 26. h4 {[%clk 0:01:26]}  Kc6 {[%clk 0:02:21]} 27. Rd2 {[%clk 0:01:24]}  Bf8 {[%clk 0:02:20]} 28. Bf6 {[%clk 0:01:19]}  Bb4 {[%clk 0:02:17]} 29. Rd8 {[%clk 0:01:17]}  Nxb2 {[%clk 0:02:11]} 30. Bxe5 {[%clk 0:01:17]}  Nc4 {[%clk 0:02:10]} 31. Bxc4 {[%clk 0:01:13]}  bxc4 {[%clk 0:01:57]} 32. f4 {[%clk 0:01:09]}  c3 {[%clk 0:01:55]} 33. Rc8+ {[%clk 0:01:09]}  Kb7 {[%clk 0:01:50]} 34. Rb8+ {[%clk 0:01:08]}  Kc6 {[%clk 0:01:45]} 35. Rxb4 {[%clk 0:01:09]} 1-0


[Site "https://www.chess.com"]

[Event "Titled Tuesday Blitz March 14 Early 2023"]
[White "Rosen, Eric"]
[Black "Fernandez Siles, Luis"]
[WhiteFideId "2032562"]
[BlackFideId "2209420"]
[WhiteElo "2331"]
[BlackElo "2186"]
[Result "1-0"]
[Round "05"]
[TimeControl "180+2"]
[Date "2023.03.14"]
[WhiteClock "0:00:25"]
[BlackClock "0:00:05"]

1. d4 {[%clk 0:03:00]}  Nf6 {[%clk 0:02:59]} 2. Bf4 {[%clk 0:02:59]}  g6 {[%clk 0:02:57]} 3. Nc3 {[%clk 0:02:59]}  d5 {[%clk 0:02:57]} 4. e3 {[%clk 0:03:00]}  c6 {[%clk 0:02:57]} 5. h4 {[%clk 0:03:00]}  h5 {[%clk 0:02:56]} 6. Nf3 {[%clk 0:03:00]}  Bg4 {[%clk 0:02:56]} 7. Qd2 {[%clk 0:03:00]}  Bxf3 {[%clk 0:02:44]} 8. gxf3 {[%clk 0:03:00]}  Bg7 {[%clk 0:02:44]} 9. O-O-O {[%clk 0:03:00]}  Nbd7 {[%clk 0:02:44]} 10. e4 {[%clk 0:02:55]}  Nb6 {[%clk 0:02:31]} 11. e5 {[%clk 0:02:45]}  Nfd7 {[%clk 0:02:31]} 12. e6 {[%clk 0:02:46]}  fxe6 {[%clk 0:02:30]} 13. Bd3 {[%clk 0:02:46]}  Nf8 {[%clk 0:02:31]} 14. Qe2 {[%clk 0:02:38]}  Qd7 {[%clk 0:02:27]} 15. Be5 {[%clk 0:02:34]}  Bf6 {[%clk 0:02:17]} 16. Rhg1 {[%clk 0:02:31]}  Rg8 {[%clk 0:02:14]} 17. f4 {[%clk 0:02:11]}  Bxe5 {[%clk 0:02:03]} 18. fxe5 {[%clk 0:01:57]}  O-O-O {[%clk 0:01:58]} 19. Rg3 {[%clk 0:01:56]}  Qe8 {[%clk 0:01:42]} 20. Rdg1 {[%clk 0:01:54]}  Qf7 {[%clk 0:01:43]} 21. Qe3 {[%clk 0:01:41]}  Nc4 {[%clk 0:01:43]} 22. Bxc4 {[%clk 0:01:39]}  dxc4 {[%clk 0:01:44]} 23. Ne4 {[%clk 0:01:40]}  Rd5 {[%clk 0:01:26]} 24. c3 {[%clk 0:01:24]}  b6 {[%clk 0:01:24]} 25. Rf3 {[%clk 0:01:21]}  Qe8 {[%clk 0:01:22]} 26. Qe2 {[%clk 0:01:16]}  b5 {[%clk 0:01:22]} 27. Nc5 {[%clk 0:01:13]}  Rxc5 {[%clk 0:01:13]} 28. dxc5 {[%clk 0:01:13]}  Nd7 {[%clk 0:01:13]} 29. Qe3 {[%clk 0:01:09]}  Rf8 {[%clk 0:01:07]} 30. Rxf8 {[%clk 0:00:59]}  Qxf8 {[%clk 0:01:08]} 31. Rxg6 {[%clk 0:00:58]}  Qf5 {[%clk 0:01:04]} 32. Rg8+ {[%clk 0:00:53]}  Kc7 {[%clk 0:01:01]} 33. f4 {[%clk 0:00:54]}  Qf7 {[%clk 0:00:54]} 34. Rg5 {[%clk 0:00:51]}  Nf8 {[%clk 0:00:52]} 35. Qe4 {[%clk 0:00:44]}  Nd7 {[%clk 0:00:51]} 36. Qd4 {[%clk 0:00:39]}  Qf8 {[%clk 0:00:39]} 37. a4 {[%clk 0:00:37]}  a6 {[%clk 0:00:38]} 38. Rxh5 {[%clk 0:00:34]}  Qg7 {[%clk 0:00:18]} 39. Rg5 {[%clk 0:00:33]}  Qh7 {[%clk 0:00:19]} 40. h5 {[%clk 0:00:33]}  Nb8 {[%clk 0:00:09]} 41. f5 {[%clk 0:00:29]}  exf5 {[%clk 0:00:09]} 42. e6 {[%clk 0:00:29]}  f4 {[%clk 0:00:07]} 43. Rg7 {[%clk 0:00:26]}  Qf5 {[%clk 0:00:05]} 44. Rxe7+ {[%clk 0:00:26]}  Kc8 {[%clk 0:00:05]} 45. Qh8+ {[%clk 0:00:25]} 1-0


[Site "https://www.chess.com"]

[Event "Titled Tuesday Blitz March 14 Early 2023"]
[White "Karttunen, Mika"]
[Black "Alahakoon, Isuru"]
[WhiteFideId "502081"]
[BlackFideId "9900993"]
[WhiteElo "2396"]
[BlackElo "1995"]
[Result "1-0"]
[Round "05"]
[TimeControl "180+2"]
[Date "2023.03.14"]
[WhiteClock "0:00:13"]
[BlackClock "0:00:09"]

1. c4 {[%clk 0:03:00]}  e5 {[%clk 0:02:58]} 2. Nc3 {[%clk 0:03:00]}  Nc6 {[%clk 0:02:59]} 3. g3 {[%clk 0:03:00]}  Bc5 {[%clk 0:02:58]} 4. Bg2 {[%clk 0:03:00]}  d6 {[%clk 0:02:56]} 5. e3 {[%clk 0:02:55]}  a6 {[%clk 0:02:56]} 6. Nge2 {[%clk 0:02:55]}  Ba7 {[%clk 0:02:56]} 7. O-O {[%clk 0:02:48]}  h5 {[%clk 0:02:56]} 8. h4 {[%clk 0:02:38]}  g5 {[%clk 0:02:55]} 9. hxg5 {[%clk 0:02:09]}  Qxg5 {[%clk 0:02:48]} 10. f4 {[%clk 0:01:55]}  exf4 {[%clk 0:02:41]} 11. gxf4 {[%clk 0:01:53]}  Qd8 {[%clk 0:02:13]} 12. Qe1 {[%clk 0:01:19]}  h4 {[%clk 0:02:10]} 13. Kh2 {[%clk 0:01:17]}  h3 {[%clk 0:02:08]} 14. Bf3 {[%clk 0:01:17]}  Nf6 {[%clk 0:02:05]} 15. Rg1 {[%clk 0:01:16]}  Be6 {[%clk 0:01:45]} 16. Nd5 {[%clk 0:01:04]}  Bxd5 {[%clk 0:01:37]} 17. cxd5 {[%clk 0:01:03]}  Ne7 {[%clk 0:01:38]} 18. b3 {[%clk 0:00:56]}  Nexd5 {[%clk 0:01:22]} 19. Bb2 {[%clk 0:00:56]}  c6 {[%clk 0:01:11]} 20. Rg5 {[%clk 0:00:50]}  Nb4 {[%clk 0:01:08]} 21. Qg3 {[%clk 0:00:44]}  Nd3 {[%clk 0:01:03]} 22. Bc3 {[%clk 0:00:40]}  Qe7 {[%clk 0:00:55]} 23. Rg1 {[%clk 0:00:27]}  O-O-O {[%clk 0:00:53]} 24. Rf5 {[%clk 0:00:20]}  Rh6 {[%clk 0:00:43]} 25. Qg5 {[%clk 0:00:16]}  Ng8 {[%clk 0:00:39]} 26. Qxe7 {[%clk 0:00:15]}  Nxe7 {[%clk 0:00:38]} 27. Rxf7 {[%clk 0:00:15]}  Nd5 {[%clk 0:00:34]} 28. Bg7 {[%clk 0:00:15]}  Rh7 {[%clk 0:00:31]} 29. Be4 {[%clk 0:00:15]}  Rh4 {[%clk 0:00:26]} 30. Bxd3 {[%clk 0:00:15]}  Nb4 {[%clk 0:00:20]} 31. Bb1 {[%clk 0:00:15]}  d5 {[%clk 0:00:18]} 32. Ng3 {[%clk 0:00:15]}  d4 {[%clk 0:00:18]} 33. Nf5 {[%clk 0:00:15]}  Bb6 {[%clk 0:00:18]} 34. Nxh4 {[%clk 0:00:15]}  dxe3 {[%clk 0:00:18]} 35. dxe3 {[%clk 0:00:15]}  Rd2+ {[%clk 0:00:19]} 36. Kxh3 {[%clk 0:00:15]}  Nc2 {[%clk 0:00:18]} 37. Bxc2 {[%clk 0:00:15]}  Rxc2 {[%clk 0:00:18]} 38. Rg2 {[%clk 0:00:15]}  Rc1 {[%clk 0:00:18]} 39. Nf5 {[%clk 0:00:15]}  Bxe3 {[%clk 0:00:19]} 40. Nxe3 {[%clk 0:00:15]}  Rh1+ {[%clk 0:00:10]} 41. Kg4 {[%clk 0:00:14]}  Ra1 {[%clk 0:00:09]} 42. Be5 {[%clk 0:00:14]}  b5 {[%clk 0:00:09]} 43. Kf5 {[%clk 0:00:13]} 1-0


[Site "https://www.chess.com"]

[Event "Titled Tuesday Blitz March 14 Early 2023"]
[White "Escano Dionicio, Porfirio Simeon"]
[Black "ArtemDyachuk"]
[WhiteFideId "6406181"]
[WhiteElo "1968"]
[BlackElo "2360"]
[Result "0-1"]
[Round "05"]
[TimeControl "180+2"]
[Date "2023.03.14"]
[WhiteClock "0:00:11"]
[BlackClock "0:00:03"]

1. d4 {[%clk 0:03:00]}  Nf6 {[%clk 0:02:57]} 2. c4 {[%clk 0:03:01]}  c5 {[%clk 0:02:58]} 3. Nf3 {[%clk 0:03:00]}  cxd4 {[%clk 0:02:54]} 4. Nxd4 {[%clk 0:03:01]}  Qc7 {[%clk 0:02:55]} 5. Nc3 {[%clk 0:02:58]}  Qxc4 {[%clk 0:02:54]} 6. e4 {[%clk 0:02:53]}  Qc7 {[%clk 0:02:54]} 7. Ndb5 {[%clk 0:02:50]}  Qd8 {[%clk 0:02:49]} 8. e5 {[%clk 0:02:48]}  Ng8 {[%clk 0:02:46]} 9. Nd5 {[%clk 0:02:43]}  Na6 {[%clk 0:02:31]} 10. Qc2 {[%clk 0:02:32]}  e6 {[%clk 0:01:41]} 11. Nbc7+ {[%clk 0:02:30]}  Nxc7 {[%clk 0:01:41]} 12. Nxc7+ {[%clk 0:02:30]}  Ke7 {[%clk 0:01:42]} 13. Nxa8 {[%clk 0:02:15]}  f6 {[%clk 0:01:30]} 14. exf6+ {[%clk 0:02:00]}  Nxf6 {[%clk 0:01:31]} 15. Be2 {[%clk 0:01:56]}  h5 {[%clk 0:01:23]} 16. Bd2 {[%clk 0:01:51]}  Kf7 {[%clk 0:01:20]} 17. Rc1 {[%clk 0:01:46]}  Bd6 {[%clk 0:01:20]} 18. Nc7 {[%clk 0:01:30]}  a6 {[%clk 0:01:10]} 19. O-O {[%clk 0:01:21]}  b5 {[%clk 0:00:55]} 20. h3 {[%clk 0:01:11]}  Bb7 {[%clk 0:00:49]} 21. a4 {[%clk 0:01:11]}  Ng4 {[%clk 0:00:47]} 22. f4 {[%clk 0:00:45]}  Qh4 {[%clk 0:00:05]} 23. Bf3 {[%clk 0:00:36]}  Qg3 {[%clk 0:00:04]} 24. Rfe1 {[%clk 0:00:16]}  Qf2+ {[%clk 0:00:03]} 25. Kh1 {[%clk 0:00:14]}  Bxf3 {[%clk 0:00:03]} 26. Be3 {[%clk 0:00:11]}  Bxg2# {[%clk 0:00:03]} 0-1


[Site "https://www.chess.com"]

[Event "Titled Tuesday Blitz March 14 Early 2023"]
[White "rikchessmx"]
[Black "Sai Han Thiha"]
[BlackFideId "13012290"]
[WhiteElo "2326"]
[BlackElo "1954"]
[Result "0-1"]
[Round "05"]
[TimeControl "180+2"]
[Date "2023.03.14"]
[WhiteClock "0:02:09"]
[BlackClock "0:01:27"]

1. e4 {[%clk 0:02:59]}  c6 {[%clk 0:03:00]} 2. d4 {[%clk 0:02:57]}  d5 {[%clk 0:03:01]} 3. Nc3 {[%clk 0:02:57]}  dxe4 {[%clk 0:03:00]} 4. Nxe4 {[%clk 0:02:57]}  Nf6 {[%clk 0:03:01]} 5. Ng5 {[%clk 0:02:57]}  Bf5 {[%clk 0:02:20]} 6. N1f3 {[%clk 0:02:55]}  h6 {[%clk 0:02:18]} 7. Nh3 {[%clk 0:02:46]}  Bxh3 {[%clk 0:02:17]} 8. gxh3 {[%clk 0:02:46]}  e6 {[%clk 0:02:18]} 9. Bg2 {[%clk 0:02:42]}  Nbd7 {[%clk 0:02:16]} 10. Be3 {[%clk 0:02:38]}  Nd5 {[%clk 0:02:10]} 11. Qd2 {[%clk 0:02:26]}  Bd6 {[%clk 0:02:04]} 12. O-O-O {[%clk 0:02:24]}  b5 {[%clk 0:01:56]} 13. Kb1 {[%clk 0:02:16]}  a5 {[%clk 0:01:48]} 14. Ne1 {[%clk 0:02:16]}  N7b6 {[%clk 0:01:47]} 15. Nd3 {[%clk 0:02:10]}  Nc4 {[%clk 0:01:46]} 16. Qe2 {[%clk 0:02:10]}  a4 {[%clk 0:01:29]} 17. Bc1 {[%clk 0:02:09]}  a3 {[%clk 0:01:27]} 18. b3 {[%clk 0:02:09]}  Nc3+ {[%clk 0:01:27]} 0-1


[Site "https://www.chess.com"]

[Event "Titled Tuesday Blitz March 14 Early 2023"]
[White "MunichMouse"]
[Black "Horak, Martin"]
[BlackFideId "367095"]
[WhiteElo "2307"]
[BlackElo "2091"]
[Result "0-1"]
[Round "05"]
[TimeControl "180+2"]
[Date "2023.03.14"]
[WhiteClock "0:00:34"]
[BlackClock "0:00:49"]

1. d4 {[%clk 0:03:00]}  Nf6 {[%clk 0:02:59]} 2. c4 {[%clk 0:03:00]}  e6 {[%clk 0:02:59]} 3. Nf3 {[%clk 0:03:00]}  d5 {[%clk 0:02:58]} 4. g3 {[%clk 0:03:01]}  dxc4 {[%clk 0:02:57]} 5. Qa4+ {[%clk 0:02:59]}  Nbd7 {[%clk 0:02:55]} 6. Qxc4 {[%clk 0:03:00]}  a6 {[%clk 0:02:55]} 7. Bg2 {[%clk 0:03:00]}  b5 {[%clk 0:02:55]} 8. Qd3 {[%clk 0:03:01]}  Bb7 {[%clk 0:02:56]} 9. Nbd2 {[%clk 0:03:01]}  c5 {[%clk 0:02:56]} 10. O-O {[%clk 0:03:00]}  cxd4 {[%clk 0:02:54]} 11. Nxd4 {[%clk 0:03:00]}  Bxg2 {[%clk 0:02:55]} 12. Kxg2 {[%clk 0:02:59]}  Nc5 {[%clk 0:02:27]} 13. Qf3 {[%clk 0:02:58]}  Rc8 {[%clk 0:02:24]} 14. N4b3 {[%clk 0:02:44]}  Qd5 {[%clk 0:02:09]} 15. Rd1 {[%clk 0:02:39]}  Be7 {[%clk 0:02:07]} 16. Nxc5 {[%clk 0:02:35]}  Rxc5 {[%clk 0:02:01]} 17. e4 {[%clk 0:02:32]}  Qc6 {[%clk 0:01:43]} 18. Nb3 {[%clk 0:02:19]}  Rc2 {[%clk 0:01:36]} 19. Nd4 {[%clk 0:01:59]}  Qc7 {[%clk 0:01:26]} 20. e5 {[%clk 0:01:43]}  Nd5 {[%clk 0:01:21]} 21. Nxc2 {[%clk 0:01:40]}  Qxc2 {[%clk 0:01:20]} 22. Rd2 {[%clk 0:01:19]}  Qc6 {[%clk 0:01:17]} 23. b3 {[%clk 0:01:19]}  O-O {[%clk 0:01:13]} 24. Bb2 {[%clk 0:01:20]}  Rd8 {[%clk 0:01:07]} 25. Rc1 {[%clk 0:01:20]}  Ne3+ {[%clk 0:01:04]} 26. Kh3 {[%clk 0:00:34]}  Qxf3 {[%clk 0:01:02]} 27. Rxd8+ {[%clk 0:00:33]}  Bxd8 {[%clk 0:01:02]} 28. fxe3 {[%clk 0:00:34]}  g5 {[%clk 0:00:49]} 0-1


[Site "https://www.chess.com"]